[Event "*** MasterClass Titled Tuesday Blitz"]
[Site "Chess.com"]
[Date "2017.10.03"]
[Round "2"]
[White "ArnaudovP"]
[Black "pultineviciuspaulius"]
[Result "1-0"]
[WhiteElo "2460"]
[BlackElo "2433"]
[TimeControl "180+2"]
[EndTime "13:21:40 PDT"]
[Termination "ArnaudovP won by resignation"]

1. Nf3 {[%clk 0:03:00.2]} 1... Nf6 {[%clk 0:02:58.6]} 2. c4 {[%clk 0:03:00.7]}
2... e6 {[%clk 0:02:58.2]} 3. g3 {[%clk 0:02:58.9]} 3... a6 {[%clk 0:02:57.9]}
4. Bg2 {[%clk 0:03:00.8]} 4... b5 {[%clk 0:02:58.4]} 5. b3 {[%clk 0:03:00.5]}
5... Bb7 {[%clk 0:02:54.9]} 6. O-O {[%clk 0:03:00.7]} 6... Be7 {[%clk
0:02:54.7]} 7. d3 {[%clk 0:03:01.7]} 7... O-O {[%clk 0:02:45.6]} 8. e4 {[%clk
0:03:02.1]} 8... d6 {[%clk 0:02:44.7]} 9. Re1 {[%clk 0:03:01.7]} 9... e5 {[%clk
0:02:44.6]} 10. Nc3 {[%clk 0:03:00.8]} 10... bxc4 {[%clk 0:02:28.8]} 11. bxc4
{[%clk 0:02:53.3]} 11... Nbd7 {[%clk 0:02:29.1]} 12. Rb1 {[%clk 0:02:49.4]}
12... Nc5 {[%clk 0:02:27.9]} 13. Ba3 {[%clk 0:02:39.5]} 13... Nfd7 {[%clk
0:02:28.1]} 14. d4 {[%clk 0:02:38.3]} 14... exd4 {[%clk 0:02:24.9]} 15. Nxd4
{[%clk 0:02:39.1]} 15... Re8 {[%clk 0:02:16.3]} 16. Nd5 {[%clk 0:02:34.7]} 16...
Bf8 {[%clk 0:02:16]} 17. Qc2 {[%clk 0:02:09.3]} 17... g6 {[%clk 0:01:35.7]} 18.
Bxc5 {[%clk 0:02:05.7]} 18... Nxc5 {[%clk 0:01:35.9]} 19. Rxb7 {[%clk
0:01:56.7]} 19... Nxb7 {[%clk 0:01:32.1]} 20. Nc6 {[%clk 0:01:57.6]} 20... Qc8
{[%clk 0:01:12.3]} 21. Nf6+ {[%clk 0:01:57.2]} 21... Kh8 {[%clk 0:01:12.6]} 22.
Nxe8 {[%clk 0:01:49.9]} 22... Qxe8 {[%clk 0:01:14.5]} 23. Qb2+ {[%clk
0:01:49.8]} 23... Bg7 {[%clk 0:01:08.5]} 24. Qxb7 {[%clk 0:01:50.4]} 24... a5
{[%clk 0:01:04.2]} 25. a4 {[%clk 0:01:47.2]} 25... Rc8 {[%clk 0:01:03.8]} 26.
Bh3 {[%clk 0:01:45.3]} 26... f5 {[%clk 0:01:02]} 27. Kf1 {[%clk 0:01:42]} 27...
Bc3 {[%clk 0:00:59.4]} 28. Re2 {[%clk 0:01:39.5]} 28... Qd7 {[%clk 0:00:52.2]}
29. exf5 {[%clk 0:01:37.3]} 29... Re8 {[%clk 0:00:50.5]} 30. Rxe8+ {[%clk
0:01:35.1]} 30... Qxe8 {[%clk 0:00:52.3]} 31. Qb8 {[%clk 0:01:35.1]} 31... Qxb8
{[%clk 0:00:51.6]} 32. Nxb8 {[%clk 0:01:36]} 32... gxf5 {[%clk 0:00:53.3]} 33.
Bxf5 {[%clk 0:01:36]} 33... Kg7 {[%clk 0:00:54.7]} 34. Nc6 {[%clk 0:01:33.8]}
34... Kf6 {[%clk 0:00:55]} 35. Bxh7 {[%clk 0:01:33.4]} 35... Ke6 {[%clk
0:00:56.2]} 36. Bg8+ {[%clk 0:01:33.7]} 36... Kd7 {[%clk 0:00:56.7]} 37. Bd5
{[%clk 0:01:34.6]} 1-0

[Event "*** MasterClass Titled Tuesday Blitz"]
[Site "Chess.com"]
[Date "2017.10.03"]
[Round "2"]
[White "djogrodek1"]
[Black "anon97531"]
[Result "1-0"]
[WhiteElo "2398"]
[BlackElo "2263"]
[TimeControl "180+2"]
[EndTime "13:21:40 PDT"]
[Termination "djogrodek1 won by resignation"]

1. e4 {[%clk 0:03:01.9]} 1... e6 {[%clk 0:03:00.7]} 2. d4 {[%clk 0:03:03]} 2...
d5 {[%clk 0:03:02]} 3. Nd2 {[%clk 0:03:04.6]} 3... Nf6 {[%clk 0:03:02.7]} 4. e5
{[%clk 0:03:05.8]} 4... Nfd7 {[%clk 0:03:04.3]} 5. Bd3 {[%clk 0:03:07.4]} 5...
c5 {[%clk 0:03:05.8]} 6. c3 {[%clk 0:03:09.1]} 6... Nc6 {[%clk 0:03:07.2]} 7.
Ne2 {[%clk 0:03:10.5]} 7... Qb6 {[%clk 0:03:07.8]} 8. Nf3 {[%clk 0:03:11.4]}
8... cxd4 {[%clk 0:03:08.9]} 9. cxd4 {[%clk 0:03:13.3]} 9... f6 {[%clk
0:03:09.7]} 10. exf6 {[%clk 0:03:15.2]} 10... Nxf6 {[%clk 0:03:10.8]} 11. O-O
{[%clk 0:03:17.1]} 11... Bd6 {[%clk 0:03:12]} 12. Bf4 {[%clk 0:03:18.6]} 12...
Bxf4 {[%clk 0:03:12.2]} 13. Nxf4 {[%clk 0:03:20.5]} 13... O-O {[%clk 0:03:13.5]}
14. Qd2 {[%clk 0:03:19.9]} 14... Bd7 {[%clk 0:03:09]} 15. Rfe1 {[%clk
0:03:19.7]} 15... Rae8 {[%clk 0:03:03.3]} 16. Rad1 {[%clk 0:03:16.6]} 16... Kh8
{[%clk 0:02:58.2]} 17. Bb1 {[%clk 0:03:16.6]} 17... Re7 {[%clk 0:02:45.7]} 18.
Ng5 {[%clk 0:03:14.1]} 18... Ne4 {[%clk 0:02:12.1]} 19. Nxe4 {[%clk 0:03:10.8]}
19... dxe4 {[%clk 0:02:11.2]} 20. Rxe4 {[%clk 0:03:11]} 20... Ref7 {[%clk
0:02:02.7]} 21. Nh3 {[%clk 0:02:59.3]} 21... e5 {[%clk 0:01:54.3]} 22. Rh4
{[%clk 0:02:59]} 22... Bf5 {[%clk 0:01:30.2]} 23. Ng5 {[%clk 0:02:54.4]} 23...
Nxd4 {[%clk 0:01:11.8]} 24. Nxf7+ {[%clk 0:02:54.1]} 24... Rxf7 {[%clk
0:01:11.9]} 25. Bxf5 {[%clk 0:02:54.8]} 25... Rxf5 {[%clk 0:01:12.4]} 26. Re1
{[%clk 0:02:51.9]} 26... Nc6 {[%clk 0:00:58.6]} 27. Rh3 {[%clk 0:02:47]} 27...
g6 {[%clk 0:00:48.2]} 28. Rd3 {[%clk 0:02:46.4]} 28... Nd4 {[%clk 0:00:47.2]}
29. Rde3 {[%clk 0:02:47.1]} 29... Qf6 {[%clk 0:00:36.1]} 30. f3 {[%clk
0:02:42.7]} 30... Kg7 {[%clk 0:00:31.1]} 31. Qa5 {[%clk 0:02:41.1]} 31... Nc6
{[%clk 0:00:30.7]} 32. Qb5 {[%clk 0:02:41.8]} 32... Qf7 {[%clk 0:00:30.1]} 33.
Re4 {[%clk 0:02:36.8]} 33... Qc7 {[%clk 0:00:23]} 34. Qc5 {[%clk 0:02:37.7]}
34... Rf7 {[%clk 0:00:22.5]} 35. b4 {[%clk 0:02:36.2]} 35... a6 {[%clk
0:00:23.2]} 36. a4 {[%clk 0:02:36.9]} 36... Qd7 {[%clk 0:00:21.9]} 37. b5 {[%clk
0:02:37.6]} 37... axb5 {[%clk 0:00:22.6]} 38. axb5 {[%clk 0:02:39.5]} 38... Nd8
{[%clk 0:00:19.6]} 39. Rxe5 {[%clk 0:02:38.4]} 39... Qd2 {[%clk 0:00:14.9]} 40.
Re7 {[%clk 0:02:38.2]} 40... Rxe7 {[%clk 0:00:15.3]} 41. Qxe7+ {[%clk
0:02:40.1]} 41... Kh6 {[%clk 0:00:16.4]} 42. Qe3+ {[%clk 0:02:40.7]} 42... Qxe3+
{[%clk 0:00:16.9]} 43. Rxe3 {[%clk 0:02:42.6]} 43... Kg7 {[%clk 0:00:12.6]} 44.
Re7+ {[%clk 0:02:44.1]} 44... Kf6 {[%clk 0:00:14]} 45. Rd7 {[%clk 0:02:45.6]}
45... Ne6 {[%clk 0:00:14]} 46. Rxb7 {[%clk 0:02:47.1]} 46... h5 {[%clk
0:00:14.7]} 47. b6 {[%clk 0:02:47.8]} 47... Ke5 {[%clk 0:00:15.3]} 48. Re7
{[%clk 0:02:48.6]} 48... Kd6 {[%clk 0:00:16.5]} 49. Rxe6+ {[%clk 0:02:50.5]} 1-0

[Event "*** MasterClass Titled Tuesday Blitz"]
[Site "Chess.com"]
[Date "2017.10.03"]
[Round "2"]
[White "ka1ser64"]
[Black "Semetey"]
[Result "0-1"]
[WhiteElo "2317"]
[BlackElo "2416"]
[TimeControl "180+2"]
[EndTime "13:22:02 PDT"]
[Termination "Semetey won by resignation"]

1. d4 {[%clk 0:03:01.9]} 1... Nf6 {[%clk 0:02:54.1]} 2. c4 {[%clk 0:03:02]} 2...
e6 {[%clk 0:02:53.9]} 3. Nc3 {[%clk 0:03:02.6]} 3... c5 {[%clk 0:02:54.4]} 4. d5
{[%clk 0:03:03.4]} 4... exd5 {[%clk 0:02:55.6]} 5. cxd5 {[%clk 0:03:04.8]} 5...
d6 {[%clk 0:02:57.2]} 6. e4 {[%clk 0:03:06.1]} 6... a6 {[%clk 0:02:57.1]} 7. a4
{[%clk 0:03:06.6]} 7... g6 {[%clk 0:02:55.7]} 8. h3 {[%clk 0:03:07]} 8... Bg7
{[%clk 0:02:55.5]} 9. Nf3 {[%clk 0:03:08.3]} 9... O-O {[%clk 0:02:53.1]} 10. Bd3
{[%clk 0:03:08.1]} 10... Re8 {[%clk 0:02:47.2]} 11. O-O {[%clk 0:03:09.1]} 11...
Nbd7 {[%clk 0:02:48.3]} 12. Bf4 {[%clk 0:03:09.6]} 12... Ne5 {[%clk 0:02:38.5]}
13. Nxe5 {[%clk 0:03:08.5]} 13... dxe5 {[%clk 0:02:39.3]} 14. Bg5 {[%clk
0:03:07.4]} 14... Qd6 {[%clk 0:02:34]} 15. Qd2 {[%clk 0:03:04.9]} 15... Bd7
{[%clk 0:02:34]} 16. a5 {[%clk 0:02:49.5]} 16... Rac8 {[%clk 0:02:28.6]} 17. Bc4
{[%clk 0:02:46.1]} 17... Nh5 {[%clk 0:02:28.7]} 18. Ne2 {[%clk 0:02:38.3]} 18...
f5 {[%clk 0:02:16]} 19. exf5 {[%clk 0:02:35.8]} 19... gxf5 {[%clk 0:02:16.4]}
20. f4 {[%clk 0:02:12.9]} 20... e4 {[%clk 0:02:14.2]} 21. Ra3 {[%clk 0:02:14]}
21... h6 {[%clk 0:02:08.4]} 22. Bh4 {[%clk 0:02:14.9]} 22... Kh7 {[%clk
0:02:06.8]} 23. Ng3 {[%clk 0:02:11.6]} 23... Nf6 {[%clk 0:02:06]} 24. Rf2 {[%clk
0:01:57.5]} 24... Rg8 {[%clk 0:01:58.2]} 25. Nf1 {[%clk 0:01:58.4]} 25... Nh5
{[%clk 0:01:54.5]} 26. g3 {[%clk 0:01:15.1]} 26... Bd4 {[%clk 0:01:52.6]} 27.
Kh2 {[%clk 0:01:07.8]} 27... Rg6 {[%clk 0:01:38.2]} 28. Ne3 {[%clk 0:01:08.4]}
28... Rcg8 {[%clk 0:01:38.5]} 29. Rg2 {[%clk 0:00:34.2]} 29... Nxf4 {[%clk
0:01:38.8]} 30. gxf4 {[%clk 0:00:28.2]} 30... Qxf4+ {[%clk 0:01:38.7]} 31. Bg3
{[%clk 0:00:28.2]} 31... Rxg3 {[%clk 0:01:39]} 32. d6 {[%clk 0:00:14.9]} 32...
Rxg2+ {[%clk 0:01:35.9]} 0-1

[Event "*** MasterClass Titled Tuesday Blitz"]
[Site "Chess.com"]
[Date "2017.10.03"]
[Round "2"]
[White "ehrenfeld"]
[Black "timator"]
[Result "1/2-1/2"]
[WhiteElo "2317"]
[BlackElo "2411"]
[TimeControl "180+2"]
[EndTime "13:22:03 PDT"]
[Termination "Game drawn by agreement"]

1. e4 {[%clk 0:03:01.9]} 1... c5 {[%clk 0:03:00.3]} 2. Nf3 {[%clk 0:03:02.3]}
2... Nc6 {[%clk 0:03:01.6]} 3. Bb5 {[%clk 0:03:02.7]} 3... e6 {[%clk 0:03:02.5]}
4. Bxc6 {[%clk 0:03:03.5]} 4... bxc6 {[%clk 0:03:03.1]} 5. d3 {[%clk 0:03:04.6]}
5... Ne7 {[%clk 0:03:04.5]} 6. Ng5 {[%clk 0:03:03.3]} 6... Ng6 {[%clk
0:03:01.8]} 7. O-O {[%clk 0:03:01.7]} 7... Be7 {[%clk 0:03:02.2]} 8. Nh3 {[%clk
0:03:00.3]} 8... O-O {[%clk 0:03:01.9]} 9. f4 {[%clk 0:02:59.6]} 9... f5 {[%clk
0:03:02.8]} 10. e5 {[%clk 0:02:57.2]} 10... d5 {[%clk 0:03:01.9]} 11. exd6
{[%clk 0:02:52.4]} 11... Bxd6 {[%clk 0:03:03]} 12. Na3 {[%clk 0:02:53.3]} 12...
Bc7 {[%clk 0:02:59.4]} 13. Nc4 {[%clk 0:02:53.2]} 13... Ba6 {[%clk 0:03:00.3]}
14. Kh1 {[%clk 0:02:46.2]} 14... Bxc4 {[%clk 0:03:00.4]} 15. dxc4 {[%clk
0:02:46.5]} 15... Qe7 {[%clk 0:02:48.3]} 16. Qe2 {[%clk 0:02:40.8]} 16... e5
{[%clk 0:02:33.6]} 17. Bd2 {[%clk 0:02:28.5]} 17... e4 {[%clk 0:02:28.6]} 18.
Rad1 {[%clk 0:02:25]} 18... Rad8 {[%clk 0:02:22.7]} 19. Be3 {[%clk 0:02:26]}
19... Rxd1 {[%clk 0:02:10.8]} 20. Rxd1 {[%clk 0:02:26.1]} 20... Rd8 {[%clk
0:02:12.2]} 21. g3 {[%clk 0:02:23.5]} 21... Bb6 {[%clk 0:02:02.2]} 22. Nf2
{[%clk 0:02:23.8]} 22... Nf8 {[%clk 0:01:59.6]} 23. Kg2 {[%clk 0:02:23.6]} 23...
Ne6 {[%clk 0:02:00.2]} 24. c3 {[%clk 0:02:23.4]} 24... Bc7 {[%clk 0:01:22.3]}
25. Rxd8+ {[%clk 0:02:22.8]} 25... Qxd8 {[%clk 0:01:22.5]} 26. b4 {[%clk
0:02:17.7]} 26... h6 {[%clk 0:01:23]} 27. b5 {[%clk 0:02:07.2]} 27... g5 {[%clk
0:00:50.1]} 28. Nh3 {[%clk 0:01:52.2]} 28... gxf4 {[%clk 0:00:45.6]} 29. Nxf4
{[%clk 0:01:50.7]} 29... Nxf4+ {[%clk 0:00:46.2]} 30. Bxf4 {[%clk 0:01:51.4]}
30... Bxf4 {[%clk 0:00:47.1]} 31. gxf4 {[%clk 0:01:52]} 31... Qc7 {[%clk
0:00:44]} 32. Qh5 {[%clk 0:01:51.1]} 32... cxb5 {[%clk 0:00:28.3]} 33. Qg6+
{[%clk 0:01:38.4]} 33... Qg7 {[%clk 0:00:29.1]} 34. Qxg7+ {[%clk 0:01:38.3]}
34... Kxg7 {[%clk 0:00:31]} 35. cxb5 {[%clk 0:01:39.5]} 35... Kf7 {[%clk
0:00:28.7]} 36. c4 {[%clk 0:01:37.7]} 36... Ke7 {[%clk 0:00:28.8]} 37. a4 {[%clk
0:01:37.1]} 37... Kd6 {[%clk 0:00:27.8]} 38. a5 {[%clk 0:01:37.9]} 38... Kc7
{[%clk 0:00:28.8]} 39. Kf2 {[%clk 0:01:37]} 39... Kb7 {[%clk 0:00:30.2]} 1/2-1/2

[Event "*** MasterClass Titled Tuesday Blitz"]
[Site "Chess.com"]
[Date "2017.10.03"]
[Round "2"]
[White "Shtembuliak"]
[Black "SabinaFoisor"]
[Result "1-0"]
[WhiteElo "2612"]
[BlackElo "2292"]
[TimeControl "180+2"]
[EndTime "13:22:06 PDT"]
[Termination "Shtembuliak won on time"]

1. Nf3 {[%clk 0:03:01.6]} 1... d5 {[%clk 0:03:00]} 2. g3 {[%clk 0:03:02]} 2...
Nf6 {[%clk 0:03:01.1]} 3. Bg2 {[%clk 0:03:03.5]} 3... e6 {[%clk 0:03:02.5]} 4.
O-O {[%clk 0:03:04.6]} 4... Be7 {[%clk 0:03:04.1]} 5. c4 {[%clk 0:03:05.7]} 5...
O-O {[%clk 0:03:05.7]} 6. Ne5 {[%clk 0:03:07]} 6... d4 {[%clk 0:02:53.8]} 7. e3
{[%clk 0:03:00.8]} 7... c5 {[%clk 0:02:49.4]} 8. d3 {[%clk 0:02:58.8]} 8... Bd6
{[%clk 0:02:39.9]} 9. exd4 {[%clk 0:02:56.4]} 9... cxd4 {[%clk 0:02:37]} 10. Re1
{[%clk 0:02:57.5]} 10... Bxe5 {[%clk 0:02:26.7]} 11. Rxe5 {[%clk 0:02:57.4]}
11... Nc6 {[%clk 0:02:27.9]} 12. Re1 {[%clk 0:02:58.5]} 12... Re8 {[%clk
0:02:20.5]} 13. a3 {[%clk 0:02:57.9]} 13... a5 {[%clk 0:02:13.6]} 14. Bg5 {[%clk
0:02:55.3]} 14... e5 {[%clk 0:01:59.1]} 15. Nd2 {[%clk 0:02:55.3]} 15... Bf5
{[%clk 0:01:50.5]} 16. Ne4 {[%clk 0:02:44.5]} 16... Bxe4 {[%clk 0:01:41.9]} 17.
Bxe4 {[%clk 0:02:45.6]} 17... h6 {[%clk 0:01:40.7]} 18. Bxf6 {[%clk 0:02:46.5]}
18... Qxf6 {[%clk 0:01:41.4]} 19. Qa4 {[%clk 0:02:44.3]} 19... Qd6 {[%clk
0:01:02]} 20. Re2 {[%clk 0:02:43.9]} 20... Ra7 {[%clk 0:00:54.6]} 21. Rae1
{[%clk 0:02:44.8]} 21... Re7 {[%clk 0:00:46.3]} 22. Bd5 {[%clk 0:02:44.6]} 22...
Kh7 {[%clk 0:00:40.5]} 23. Be4+ {[%clk 0:02:37.3]} 23... g6 {[%clk 0:00:40.4]}
24. Qb5 {[%clk 0:02:21.7]} 24... Nd8 {[%clk 0:00:35.3]} 25. c5 {[%clk
0:02:20.6]} 25... Qd7 {[%clk 0:00:29.1]} 26. Qc4 {[%clk 0:02:19.1]} 26... Kg7
{[%clk 0:00:24.5]} 27. Bd5 {[%clk 0:02:15.4]} 27... f6 {[%clk 0:00:22.6]} 28. f4
{[%clk 0:02:12.9]} 28... Nc6 {[%clk 0:00:15.1]} 29. Bxc6 {[%clk 0:02:04.8]}
29... bxc6 {[%clk 0:00:14.8]} 30. fxe5 {[%clk 0:02:06]} 30... fxe5 {[%clk
0:00:14.5]} 31. Rxe5 {[%clk 0:02:07.1]} 31... Rxe5 {[%clk 0:00:11]} 32. Rxe5
{[%clk 0:02:09]} 32... Qd8 {[%clk 0:00:08.9]} 33. Re4 {[%clk 0:02:05.6]} 33...
Rd7 {[%clk 0:00:09.5]} 34. Qe6 {[%clk 0:02:03.8]} 34... Rf7 {[%clk 0:00:10.4]}
35. Qe5+ {[%clk 0:02:01.2]} 35... Kh7 {[%clk 0:00:10.3]} 36. Qxd4 {[%clk
0:01:53.9]} 36... Qg5 {[%clk 0:00:11]} 37. Qe3 {[%clk 0:01:40.2]} 1-0

[Event "*** MasterClass Titled Tuesday Blitz"]
[Site "Chess.com"]
[Date "2017.10.03"]
[Round "2"]
[White "VladDobrov"]
[Black "Oneofmyturns"]
[Result "0-1"]
[WhiteElo "2622"]
[BlackElo "2579"]
[TimeControl "180+2"]
[EndTime "13:22:14 PDT"]
[Termination "Oneofmyturns won by resignation"]

1. d4 {[%clk 0:02:29.2]} 1... Nf6 {[%clk 0:03:00.6]} 2. c4 {[%clk 0:02:31.1]}
2... g6 {[%clk 0:03:01.8]} 3. g3 {[%clk 0:02:31.9]} 3... c6 {[%clk 0:03:02.6]}
4. Bg2 {[%clk 0:02:32.9]} 4... d5 {[%clk 0:03:04.2]} 5. e3 {[%clk 0:02:33.7]}
5... Bg7 {[%clk 0:03:05.4]} 6. Ne2 {[%clk 0:02:34.8]} 6... O-O {[%clk
0:03:01.3]} 7. O-O {[%clk 0:02:35.4]} 7... dxc4 {[%clk 0:02:55.9]} 8. Na3 {[%clk
0:02:35.5]} 8... c5 {[%clk 0:02:48.8]} 9. Nxc4 {[%clk 0:02:33.5]} 9... cxd4
{[%clk 0:02:49.4]} 10. Nxd4 {[%clk 0:02:33]} 10... Nd5 {[%clk 0:02:39.6]} 11.
Qb3 {[%clk 0:02:23.8]} 11... Nc6 {[%clk 0:02:36.7]} 12. Nxc6 {[%clk 0:02:19.7]}
12... bxc6 {[%clk 0:02:38.6]} 13. e4 {[%clk 0:02:18.1]} 13... Nb6 {[%clk
0:02:31.5]} 14. Rd1 {[%clk 0:02:10.4]} 14... Qc7 {[%clk 0:02:23.7]} 15. Qc2
{[%clk 0:02:04.9]} 15... Nxc4 {[%clk 0:02:20.4]} 16. Qxc4 {[%clk 0:02:06.8]}
16... Be6 {[%clk 0:02:21.4]} 17. Qa4 {[%clk 0:01:49.5]} 17... Rfd8 {[%clk
0:02:15.5]} 18. Rxd8+ {[%clk 0:01:11.6]} 18... Rxd8 {[%clk 0:02:17.4]} 19. Rb1
{[%clk 0:01:12.3]} 19... Rd4 {[%clk 0:02:12.6]} 20. Qc2 {[%clk 0:01:11.4]} 20...
Bxa2 {[%clk 0:02:08.4]} 21. Ra1 {[%clk 0:01:12.6]} 21... Be6 {[%clk 0:01:35.4]}
22. Be3 {[%clk 0:01:13.1]} 22... Rb4 {[%clk 0:01:25]} 23. Rxa7 {[%clk
0:01:12.5]} 23... Qd8 {[%clk 0:01:09.7]} 24. Bf1 {[%clk 0:01:00.7]} 24... Bd4
{[%clk 0:00:56.9]} 25. Qd2 {[%clk 0:01:01.7]} 25... c5 {[%clk 0:00:57.1]} 26.
Bxd4 {[%clk 0:00:27.3]} 26... Rxd4 {[%clk 0:00:44.2]} 27. Qc3 {[%clk 0:00:26.2]}
27... Rd1 {[%clk 0:00:45.2]} 28. Kg2 {[%clk 0:00:26.9]} 28... Qc8 {[%clk
0:00:46.3]} 29. f3 {[%clk 0:00:21]} 0-1

[Event "*** MasterClass Titled Tuesday Blitz"]
[Site "Chess.com"]
[Date "2017.10.03"]
[Round "2"]
[White "bancsoo"]
[Black "OparinGrigoriy"]
[Result "1/2-1/2"]
[WhiteElo "2552"]
[BlackElo "2657"]
[TimeControl "180+2"]
[EndTime "13:22:22 PDT"]
[Termination "Game drawn - insufficient material"]

1. Nf3 {[%clk 0:03:01.9]} 1... d5 {[%clk 0:02:59.5]} 2. g3 {[%clk 0:03:02.4]}
2... c6 {[%clk 0:03:01]} 3. Bg2 {[%clk 0:03:03.5]} 3... Nf6 {[%clk 0:03:02.5]}
4. O-O {[%clk 0:03:04.6]} 4... Bg4 {[%clk 0:03:04.1]} 5. h3 {[%clk 0:03:05.2]}
5... Bh5 {[%clk 0:03:04.6]} 6. c4 {[%clk 0:03:04.5]} 6... e6 {[%clk 0:02:59.1]}
7. cxd5 {[%clk 0:03:04.3]} 7... Bxf3 {[%clk 0:03:00.4]} 8. Bxf3 {[%clk 0:03:04]}
8... cxd5 {[%clk 0:03:02]} 9. d4 {[%clk 0:03:05]} 9... Nc6 {[%clk 0:03:03.2]}
10. Nc3 {[%clk 0:03:05.5]} 10... Bd6 {[%clk 0:03:03.8]} 11. e3 {[%clk
0:03:05.6]} 11... O-O {[%clk 0:03:05.2]} 12. Bg2 {[%clk 0:03:04.3]} 12... a6
{[%clk 0:03:06.5]} 13. Bd2 {[%clk 0:03:04.8]} 13... Qe7 {[%clk 0:03:06.4]} 14.
Qe2 {[%clk 0:03:05.3]} 14... Rfc8 {[%clk 0:03:07.9]} 15. Rfc1 {[%clk 0:03:05.3]}
15... Rc7 {[%clk 0:03:09]} 16. Be1 {[%clk 0:03:06.4]} 16... Rac8 {[%clk
0:03:10.3]} 17. f3 {[%clk 0:03:05.7]} 17... e5 {[%clk 0:03:05.8]} 18. dxe5
{[%clk 0:03:06.4]} 18... Nxe5 {[%clk 0:03:07.7]} 19. f4 {[%clk 0:02:58.3]} 19...
Nc4 {[%clk 0:03:08.6]} 20. Bf2 {[%clk 0:02:57.4]} 20... Bc5 {[%clk 0:02:04.9]}
21. Nxd5 {[%clk 0:02:45.4]} 21... Nxd5 {[%clk 0:02:05]} 22. Bxd5 {[%clk
0:02:46.5]} 22... Nxe3 {[%clk 0:02:04]} 23. Bf3 {[%clk 0:02:44.4]} 23... Nf5
{[%clk 0:01:52.6]} 24. Qxe7 {[%clk 0:02:34.7]} 24... Bxf2+ {[%clk 0:01:47.6]}
25. Kxf2 {[%clk 0:02:35.7]} 25... Nxe7 {[%clk 0:01:49.1]} 26. Rxc7 {[%clk
0:02:31.2]} 26... Rxc7 {[%clk 0:01:51]} 27. Re1 {[%clk 0:01:51.6]} 27... g6
{[%clk 0:01:50.5]} 28. Re2 {[%clk 0:01:50.2]} 28... h5 {[%clk 0:01:48.4]} 29.
Rd2 {[%clk 0:01:50.7]} 29... Kg7 {[%clk 0:01:48.5]} 30. g4 {[%clk 0:01:49.8]}
30... hxg4 {[%clk 0:01:47.9]} 31. hxg4 {[%clk 0:01:51]} 31... g5 {[%clk
0:01:45.1]} 32. fxg5 {[%clk 0:01:48.7]} 32... Kg6 {[%clk 0:01:45.9]} 33. Rd6+
{[%clk 0:01:46.9]} 33... Kxg5 {[%clk 0:01:45]} 34. Rb6 {[%clk 0:01:48]} 34...
Nc6 {[%clk 0:01:31.9]} 35. Bxc6 {[%clk 0:01:43.8]} 35... Rxc6 {[%clk 0:01:33.8]}
36. Rxc6 {[%clk 0:01:13.3]} 36... bxc6 {[%clk 0:01:34.9]} 37. Kf3 {[%clk
0:01:14.5]} 37... f5 {[%clk 0:01:27.8]} 38. gxf5 {[%clk 0:01:15.5]} 38... Kxf5
{[%clk 0:01:29.7]} 39. Ke3 {[%clk 0:01:16.7]} 39... Ke5 {[%clk 0:01:31.1]} 40.
Kd3 {[%clk 0:01:18.1]} 40... Kd5 {[%clk 0:01:32.7]} 41. Kc3 {[%clk 0:01:16.8]}
41... Kc5 {[%clk 0:01:30.4]} 42. Kb3 {[%clk 0:01:15.9]} 42... Kb5 {[%clk
0:01:31.6]} 43. Ka3 {[%clk 0:01:17.2]} 43... Ka5 {[%clk 0:01:32.2]} 44. Kb3
{[%clk 0:01:16.2]} 44... Kb5 {[%clk 0:01:33.6]} 45. a3 {[%clk 0:01:16.4]} 45...
a5 {[%clk 0:01:32.5]} 46. a4+ {[%clk 0:01:16.6]} 46... Kc5 {[%clk 0:01:32.2]}
47. Kc3 {[%clk 0:01:18.2]} 47... Kd5 {[%clk 0:01:31.9]} 48. b4 {[%clk 0:01:08]}
48... Kd6 {[%clk 0:01:32.9]} 49. bxa5 {[%clk 0:01:06]} 49... Kc7 {[%clk
0:01:34.3]} 50. a6 {[%clk 0:01:07.5]} 50... Kb6 {[%clk 0:01:35.1]} 51. a7 {[%clk
0:01:09]} 51... Kxa7 {[%clk 0:01:36.6]} 52. Kc4 {[%clk 0:01:10.6]} 52... Ka6
{[%clk 0:01:38.4]} 53. a5 {[%clk 0:01:11.5]} 53... Kxa5 {[%clk 0:01:40.3]} 54.
Kc5 {[%clk 0:01:13]} 54... Ka4 {[%clk 0:01:41.7]} 55. Kxc6 {[%clk 0:01:14.6]}
1/2-1/2

[Event "*** MasterClass Titled Tuesday Blitz"]
[Site "Chess.com"]
[Date "2017.10.03"]
[Round "2"]
[White "SergeiAza"]
[Black "TomsKantans"]
[Result "1/2-1/2"]
[WhiteElo "2692"]
[BlackElo "2414"]
[TimeControl "180+2"]
[EndTime "13:22:31 PDT"]
[Termination "Game drawn by repetition"]

1. e4 {[%clk 0:03:01.9]} 1... c5 {[%clk 0:03:00.7]} 2. Nf3 {[%clk 0:03:02.1]}
2... Nf6 {[%clk 0:03:01.9]} 3. e5 {[%clk 0:03:01.1]} 3... Nd5 {[%clk 0:03:03.1]}
4. Nc3 {[%clk 0:03:02.6]} 4... e6 {[%clk 0:03:04.3]} 5. Nxd5 {[%clk 0:02:54.2]}
5... exd5 {[%clk 0:03:06.2]} 6. d4 {[%clk 0:02:55.3]} 6... Nc6 {[%clk
0:03:07.5]} 7. dxc5 {[%clk 0:02:50.1]} 7... Bxc5 {[%clk 0:03:09.2]} 8. Bd3
{[%clk 0:02:51]} 8... d6 {[%clk 0:03:09.9]} 9. exd6 {[%clk 0:02:50.5]} 9... Qxd6
{[%clk 0:03:11.8]} 10. O-O {[%clk 0:02:50.4]} 10... O-O {[%clk 0:03:12.4]} 11.
c3 {[%clk 0:02:48]} 11... h6 {[%clk 0:03:11.2]} 12. Re1 {[%clk 0:02:34.1]} 12...
Bb6 {[%clk 0:03:09.5]} 13. Be3 {[%clk 0:02:26.6]} 13... Bc7 {[%clk 0:03:10.5]}
14. g3 {[%clk 0:02:25.1]} 14... Qf6 {[%clk 0:02:57.8]} 15. Be2 {[%clk
0:02:12.8]} 15... Bh3 {[%clk 0:02:30.9]} 16. Qxd5 {[%clk 0:02:06.8]} 16... Rad8
{[%clk 0:02:30.2]} 17. Qh5 {[%clk 0:02:06.2]} 17... Bc8 {[%clk 0:02:14.2]} 18.
Nd4 {[%clk 0:02:00.8]} 18... Ne5 {[%clk 0:02:12.6]} 19. Bf4 {[%clk 0:02:00.6]}
19... g5 {[%clk 0:01:49.8]} 20. Bxe5 {[%clk 0:01:57]} 20... Bxe5 {[%clk
0:01:51.7]} 21. Rad1 {[%clk 0:01:44.4]} 21... Bxd4 {[%clk 0:01:47.5]} 22. cxd4
{[%clk 0:01:41.4]} 22... Be6 {[%clk 0:01:25.8]} 23. Bf3 {[%clk 0:01:29.4]} 23...
Bxa2 {[%clk 0:01:16.2]} 24. d5 {[%clk 0:01:28.4]} 24... Rd6 {[%clk 0:01:11.5]}
25. Rd2 {[%clk 0:01:15.9]} 25... Rfd8 {[%clk 0:01:09.6]} 26. Qg4 {[%clk
0:00:33.8]} 26... Bxd5 {[%clk 0:01:07.7]} 27. Bxd5 {[%clk 0:00:34.8]} 27... Rxd5
{[%clk 0:01:08.7]} 28. Rxd5 {[%clk 0:00:36.3]} 28... Rxd5 {[%clk 0:01:10.1]} 29.
Qc8+ {[%clk 0:00:37.6]} 29... Kg7 {[%clk 0:01:10.9]} 30. Qxb7 {[%clk 0:00:38.5]}
30... Rd2 {[%clk 0:01:10.7]} 31. Qxa7 {[%clk 0:00:38.8]} 31... Rxb2 {[%clk
0:01:05.7]} 32. Qe3 {[%clk 0:00:39.3]} 32... Ra2 {[%clk 0:00:58.9]} 33. Kg2
{[%clk 0:00:34.4]} 33... Qc6+ {[%clk 0:00:56.9]} 34. Kg1 {[%clk 0:00:33.5]}
34... Qf6 {[%clk 0:00:57.5]} 35. Kg2 {[%clk 0:00:29.1]} 35... Qc6+ {[%clk
0:00:57.8]} 36. Kg1 {[%clk 0:00:29.4]} 36... Qf6 {[%clk 0:00:58.5]} 37. Kg2
{[%clk 0:00:29.4]} 37... Qc6+ {[%clk 0:00:58.8]} 1/2-1/2